[Event "Titled Tuesday Blitz October 18 Late 2022"]
[White "Gabrielian, Artur"]
[Black "Rosen, Eric"]
[WhiteFideId "4131002"]
[BlackFideId "2032562"]
[WhiteElo "2432"]
[BlackElo "2362"]
[Result "1/2-1/2"]
[Round "04"]
[TimeControl "180+1"]
[Date "2022.10.18"]
[WhiteClock "0:00:07"]
[BlackClock "0:00:25"]

1. e4 {[%clk 0:03:00]}  c5 {[%clk 0:02:54]} 2. Nf3 {[%clk 0:03:00]}  d6 {[%clk 0:02:54]} 3. d4 {[%clk 0:03:01]}  Nf6 {[%clk 0:02:54]} 4. Nc3 {[%clk 0:03:00]}  cxd4 {[%clk 0:02:53]} 5. Nxd4 {[%clk 0:03:01]}  g6 {[%clk 0:02:54]} 6. Be3 {[%clk 0:03:00]}  Bg7 {[%clk 0:02:54]} 7. f3 {[%clk 0:03:00]}  a6 {[%clk 0:02:55]} 8. Qd2 {[%clk 0:03:00]}  h5 {[%clk 0:02:56]} 9. Bc4 {[%clk 0:02:49]}  b5 {[%clk 0:02:54]} 10. Bb3 {[%clk 0:02:45]}  Bb7 {[%clk 0:02:54]} 11. O-O {[%clk 0:02:42]}  Nbd7 {[%clk 0:02:46]} 12. a4 {[%clk 0:02:38]}  bxa4 {[%clk 0:02:46]} 13. Nxa4 {[%clk 0:02:34]}  O-O {[%clk 0:02:42]} 14. Rfd1 {[%clk 0:02:33]}  Qc7 {[%clk 0:02:40]} 15. c4 {[%clk 0:02:29]}  Nc5 {[%clk 0:02:20]} 16. Bc2 {[%clk 0:02:16]}  Nxa4 {[%clk 0:02:17]} 17. Rxa4 {[%clk 0:02:13]}  Nd7 {[%clk 0:02:15]} 18. b3 {[%clk 0:02:06]}  Rfe8 {[%clk 0:01:49]} 19. Ra5 {[%clk 0:01:52]}  e6 {[%clk 0:01:35]} 20. Ne2 {[%clk 0:01:43]}  d5 {[%clk 0:01:31]} 21. Ra2 {[%clk 0:01:26]}  Rad8 {[%clk 0:01:22]} 22. exd5 {[%clk 0:00:40]}  exd5 {[%clk 0:01:23]} 23. c5 {[%clk 0:00:40]}  Nxc5 {[%clk 0:01:13]} 24. Bd4 {[%clk 0:00:39]}  Ne6 {[%clk 0:00:52]} 25. Bxg7 {[%clk 0:00:39]}  Kxg7 {[%clk 0:00:52]} 26. Nd4 {[%clk 0:00:38]}  Qe5 {[%clk 0:00:43]} 27. b4 {[%clk 0:00:35]}  Nf4 {[%clk 0:00:32]} 28. Bb3 {[%clk 0:00:19]}  Qg5 {[%clk 0:00:25]} 29. g3 {[%clk 0:00:16]}  Nh3+ {[%clk 0:00:20]} 30. Kg2 {[%clk 0:00:15]}  Qxd2+ {[%clk 0:00:21]} 31. Raxd2 {[%clk 0:00:14]}  Ng5 {[%clk 0:00:22]} 32. Ba4 {[%clk 0:00:07]}  Re3 {[%clk 0:00:20]} 33. Bc6 {[%clk 0:00:07]}  Bxc6 {[%clk 0:00:12]} 34. Nxc6 {[%clk 0:00:07]}  Rd6 {[%clk 0:00:13]} 35. Nd4 {[%clk 0:00:06]}  Rb6 {[%clk 0:00:12]} 36. Kf2 {[%clk 0:00:05]}  Ra3 {[%clk 0:00:12]} 37. Nc2 {[%clk 0:00:05]}  Rxf3+ {[%clk 0:00:10]} 38. Kg2 {[%clk 0:00:04]}  Rc3 {[%clk 0:00:11]} 39. Re2 {[%clk 0:00:01]}  Rbc6 {[%clk 0:00:05]} 40. Rdd2 {[%clk 0:00:01]}  Ne6 {[%clk 0:00:04]} 41. Nd4 {[%clk 0:00:02]}  Nxd4 {[%clk 0:00:04]} 42. Rxd4 {[%clk 0:00:02]}  R3c4 {[%clk 0:00:05]} 43. Rxd5 {[%clk 0:00:03]}  Rxb4 {[%clk 0:00:05]} 44. Rd7 {[%clk 0:00:03]}  Rf6 {[%clk 0:00:05]} 45. Ra7 {[%clk 0:00:03]}  Ra4 {[%clk 0:00:05]} 46. Rd2 {[%clk 0:00:04]}  Ra1 {[%clk 0:00:04]} 47. h4 {[%clk 0:00:04]}  a5 {[%clk 0:00:04]} 48. Rd5 {[%clk 0:00:04]}  Rf5 {[%clk 0:00:04]} 49. Rxf5 {[%clk 0:00:04]}  gxf5 {[%clk 0:00:05]} 50. Kf3 {[%clk 0:00:04]}  Kg6 {[%clk 0:00:03]} 51. Kf4 {[%clk 0:00:04]}  Ra4+ {[%clk 0:00:03]} 52. Kf3 {[%clk 0:00:04]}  Ra3+ {[%clk 0:00:01]} 53. Kf4 {[%clk 0:00:04]}  Ra4+ {[%clk 0:00:02]} 54. Kf3 {[%clk 0:00:05]}  Kf6 {[%clk 0:00:02]} 55. Ra8 {[%clk 0:00:04]}  Ke5 {[%clk 0:00:02]} 56. Re8+ {[%clk 0:00:04]}  Kf6 {[%clk 0:00:02]} 57. Ra8 {[%clk 0:00:05]}  Kg7 {[%clk 0:00:02]} 58. Ra6 {[%clk 0:00:04]}  Ra1 {[%clk 0:00:02]} 59. Kf4 {[%clk 0:00:05]}  Ra3 {[%clk 0:00:01]} 60. Kxf5 {[%clk 0:00:04]}  Rxg3 {[%clk 0:00:01]} 61. Rxa5 {[%clk 0:00:04]}  Rg4 {[%clk 0:00:02]} 62. Rb5 {[%clk 0:00:04]}  Rxh4 {[%clk 0:00:02]} 63. Kg5 {[%clk 0:00:04]}  Rg4+ {[%clk 0:00:02]} 64. Kxh5 {[%clk 0:00:04]}  Rg1 {[%clk 0:00:03]} 65. Rg5+ {[%clk 0:00:04]}  Rxg5+ {[%clk 0:00:02]} 66. Kxg5 {[%clk 0:00:05]}  Kf8 {[%clk 0:00:02]} 67. Kf6 {[%clk 0:00:04]}  Ke8 {[%clk 0:00:03]} 68. Kf5 {[%clk 0:00:04]}  Ke7 {[%clk 0:00:04]} 69. Ke5 {[%clk 0:00:04]}  Kf8 {[%clk 0:00:05]} 70. Kf6 {[%clk 0:00:04]}  Kg8 {[%clk 0:00:06]} 71. Kf5 {[%clk 0:00:04]}  Kg7 {[%clk 0:00:07]} 72. Kg5 {[%clk 0:00:04]}  f6+ {[%clk 0:00:08]} 73. Kf5 {[%clk 0:00:04]}  Kf7 {[%clk 0:00:09]} 74. Kf4 {[%clk 0:00:05]}  Kg6 {[%clk 0:00:09]} 75. Kg4 {[%clk 0:00:04]}  Kg7 {[%clk 0:00:09]} 76. Kf5 {[%clk 0:00:05]}  Kf7 {[%clk 0:00:10]} 77. Kf4 {[%clk 0:00:05]}  Kg6 {[%clk 0:00:11]} 78. Kg4 {[%clk 0:00:05]}  f5+ {[%clk 0:00:11]} 79. Kf4 {[%clk 0:00:05]}  Kf6 {[%clk 0:00:12]} 80. Kf3 {[%clk 0:00:06]}  Ke5 {[%clk 0:00:13]} 81. Ke3 {[%clk 0:00:06]}  f4+ {[%clk 0:00:14]} 82. Kf3 {[%clk 0:00:06]}  Kf5 {[%clk 0:00:15]} 83. Kf2 {[%clk 0:00:06]}  Ke4 {[%clk 0:00:16]} 84. Ke2 {[%clk 0:00:06]}  f3+ {[%clk 0:00:16]} 85. Kf2 {[%clk 0:00:07]}  Kf4 {[%clk 0:00:17]} 86. Kf1 {[%clk 0:00:06]}  Kg3 {[%clk 0:00:18]} 87. Kg1 {[%clk 0:00:07]}  Kh3 {[%clk 0:00:19]} 88. Kf2 {[%clk 0:00:07]}  Kg4 {[%clk 0:00:19]} 89. Kf1 {[%clk 0:00:06]}  Kf4 {[%clk 0:00:20]} 90. Kf2 {[%clk 0:00:06]}  Ke4 {[%clk 0:00:21]} 91. Kf1 {[%clk 0:00:06]}  Kd3 {[%clk 0:00:21]} 92. Kf2 {[%clk 0:00:06]}  Ke4 {[%clk 0:00:22]} 93. Kf1 {[%clk 0:00:07]}  Ke3 {[%clk 0:00:23]} 94. Ke1 {[%clk 0:00:06]}  f2+ {[%clk 0:00:24]} 95. Kf1 {[%clk 0:00:07]}  Kf3 {[%clk 0:00:25]} 1/2-1/2


[Site "https://www.chess.com"]

[Event "Titled Tuesday Blitz October 18 Late 2022"]
[White "Galaktionov, Artem"]
[Black "Jaracz, Pawel"]
[WhiteFideId "24175471"]
[BlackFideId "1102222"]
[WhiteElo "2278"]
[BlackElo "2459"]
[Result "1-0"]
[Round "04"]
[TimeControl "180+1"]
[Date "2022.10.18"]
[WhiteClock "0:01:36"]
[BlackClock "0:00:09"]

1. d4 {[%clk 0:03:00]}  Nf6 {[%clk 0:02:59]} 2. Nf3 {[%clk 0:02:59]}  e6 {[%clk 0:02:58]} 3. c4 {[%clk 0:02:59]}  Bb4+ {[%clk 0:02:57]} 4. Nbd2 {[%clk 0:02:59]}  d5 {[%clk 0:02:56]} 5. a3 {[%clk 0:03:00]}  Be7 {[%clk 0:02:55]} 6. e3 {[%clk 0:02:58]}  O-O {[%clk 0:02:55]} 7. b4 {[%clk 0:02:58]}  a5 {[%clk 0:02:53]} 8. b5 {[%clk 0:02:58]}  c5 {[%clk 0:02:50]} 9. bxc6 {[%clk 0:02:57]}  bxc6 {[%clk 0:02:49]} 10. c5 {[%clk 0:02:56]}  Nbd7 {[%clk 0:02:43]} 11. Qa4 {[%clk 0:02:56]}  Qc7 {[%clk 0:02:39]} 12. Be2 {[%clk 0:02:56]}  e5 {[%clk 0:02:31]} 13. O-O {[%clk 0:02:56]}  e4 {[%clk 0:02:30]} 14. Ne1 {[%clk 0:02:56]}  Ba6 {[%clk 0:02:30]} 15. Bxa6 {[%clk 0:02:53]}  Rxa6 {[%clk 0:02:31]} 16. h3 {[%clk 0:02:53]}  Nh5 {[%clk 0:02:19]} 17. f4 {[%clk 0:02:41]}  exf3 {[%clk 0:02:18]} 18. Rxf3 {[%clk 0:02:41]}  f5 {[%clk 0:02:09]} 19. Nd3 {[%clk 0:02:33]}  Raa8 {[%clk 0:02:02]} 20. Nf1 {[%clk 0:02:23]}  g6 {[%clk 0:02:01]} 21. Bd2 {[%clk 0:02:22]}  Nhf6 {[%clk 0:01:59]} 22. Be1 {[%clk 0:02:23]}  Ne4 {[%clk 0:01:58]} 23. Nf4 {[%clk 0:02:19]}  Ng5 {[%clk 0:01:47]} 24. Rf2 {[%clk 0:02:17]}  Rf6 {[%clk 0:01:30]} 25. Rb1 {[%clk 0:02:16]}  Ne4 {[%clk 0:01:27]} 26. Rfb2 {[%clk 0:02:15]}  Ra7 {[%clk 0:01:25]} 27. Ng3 {[%clk 0:02:10]}  Ng5 {[%clk 0:00:54]} 28. Rb6 {[%clk 0:01:58]}  Nxc5 {[%clk 0:00:46]} 29. dxc5 {[%clk 0:01:58]}  Bxc5 {[%clk 0:00:47]} 30. R6b3 {[%clk 0:01:52]}  Ne4 {[%clk 0:00:43]} 31. Nxe4 {[%clk 0:01:52]}  fxe4 {[%clk 0:00:44]} 32. Ne2 {[%clk 0:01:49]}  Qf7 {[%clk 0:00:42]} 33. Bg3 {[%clk 0:01:44]}  g5 {[%clk 0:00:29]} 34. Rc1 {[%clk 0:01:44]}  Bd6 {[%clk 0:00:15]} 35. Rxc6 {[%clk 0:01:37]}  Bxg3 {[%clk 0:00:14]} 36. Nxg3 {[%clk 0:01:37]}  Rxc6 {[%clk 0:00:11]} 37. Qxc6 {[%clk 0:01:37]}  Rc7 {[%clk 0:00:10]} 38. Rb8+ {[%clk 0:01:37]}  Kg7 {[%clk 0:00:10]} 39. Qd6 {[%clk 0:01:36]}  Rc1+ {[%clk 0:00:09]} 40. Kh2 {[%clk 0:01:36]} 1-0


[Site "https://www.chess.com"]

[Event "Titled Tuesday Blitz October 18 Late 2022"]
[White "Georgiadis, Ioannis"]
[Black "Zierk, Steven"]
[WhiteFideId "4208900"]
[BlackFideId "2034255"]
[WhiteElo "2446"]
[BlackElo "2494"]
[Result "0-1"]
[Round "04"]
[TimeControl "180+1"]
[Date "2022.10.18"]
[WhiteClock "0:01:09"]
[BlackClock "0:01:15"]

1. e4 {[%clk 0:03:00]}  c6 {[%clk 0:02:59]} 2. d4 {[%clk 0:02:59]}  d5 {[%clk 0:03:00]} 3. exd5 {[%clk 0:03:00]}  cxd5 {[%clk 0:03:00]} 4. Bd3 {[%clk 0:03:01]}  Nc6 {[%clk 0:03:00]} 5. c3 {[%clk 0:03:01]}  Nf6 {[%clk 0:03:01]} 6. Bf4 {[%clk 0:02:59]}  Bg4 {[%clk 0:03:01]} 7. Qb3 {[%clk 0:02:59]}  Qd7 {[%clk 0:03:01]} 8. Ne2 {[%clk 0:02:59]}  Bxe2 {[%clk 0:02:54]} 9. Bxe2 {[%clk 0:03:00]}  e6 {[%clk 0:02:55]} 10. O-O {[%clk 0:03:00]}  Bd6 {[%clk 0:02:55]} 11. Be3 {[%clk 0:03:00]}  O-O {[%clk 0:02:53]} 12. Nd2 {[%clk 0:02:59]}  a6 {[%clk 0:02:52]} 13. g3 {[%clk 0:02:58]}  b5 {[%clk 0:02:47]} 14. f4 {[%clk 0:02:57]}  b4 {[%clk 0:02:41]} 15. cxb4 {[%clk 0:02:42]}  Bxb4 {[%clk 0:02:37]} 16. Nf3 {[%clk 0:02:41]}  Ne4 {[%clk 0:02:32]} 17. Rac1 {[%clk 0:02:38]}  Rfb8 {[%clk 0:02:08]} 18. Qa4 {[%clk 0:02:37]}  Ne5 {[%clk 0:02:04]} 19. Qxd7 {[%clk 0:02:34]}  Nxd7 {[%clk 0:02:05]} 20. Rc2 {[%clk 0:02:31]}  a5 {[%clk 0:01:55]} 21. Rfc1 {[%clk 0:02:29]}  Bd6 {[%clk 0:01:55]} 22. Bd3 {[%clk 0:02:26]}  f5 {[%clk 0:01:52]} 23. a4 {[%clk 0:02:10]}  Rb3 {[%clk 0:01:43]} 24. Ne1 {[%clk 0:02:02]}  Bb4 {[%clk 0:01:28]} 25. Bxe4 {[%clk 0:02:00]}  Rxe3 {[%clk 0:01:26]} 26. Nd3 {[%clk 0:01:14]}  Rxe4 {[%clk 0:01:19]} 27. Nxb4 {[%clk 0:01:14]}  axb4 {[%clk 0:01:19]} 28. Rc8+ {[%clk 0:01:15]}  Rxc8 {[%clk 0:01:18]} 29. Rxc8+ {[%clk 0:01:16]}  Kf7 {[%clk 0:01:19]} 30. a5 {[%clk 0:01:17]}  Rxd4 {[%clk 0:01:17]} 31. a6 {[%clk 0:01:11]}  Rd1+ {[%clk 0:01:17]} 32. Kf2 {[%clk 0:01:12]}  Ra1 {[%clk 0:01:18]} 33. Rc7 {[%clk 0:01:08]}  Ke7 {[%clk 0:01:17]} 34. a7 {[%clk 0:01:09]}  Kd6 {[%clk 0:01:16]} 35. Rb7 {[%clk 0:01:09]}  Kc6 {[%clk 0:01:15]} 0-1


[Site "https://www.chess.com"]

[Event "Titled Tuesday Blitz October 18 Late 2022"]
[White "Goncalves, Davi Sulzbacher"]
[Black "Machidon, Cristi"]
[WhiteFideId "2154510"]
[BlackFideId "13904590"]
[WhiteElo "2182"]
[BlackElo "2312"]
[Result "1-0"]
[Round "04"]
[TimeControl "180+1"]
[Date "2022.10.19"]
[WhiteClock "0:00:14"]
[BlackClock "0:00:02"]

1. Nf3 {[%clk 0:03:00]}  Nf6 {[%clk 0:02:59]} 2. g3 {[%clk 0:03:01]}  g6 {[%clk 0:02:58]} 3. Bg2 {[%clk 0:03:01]}  Bg7 {[%clk 0:02:58]} 4. c4 {[%clk 0:03:01]}  O-O {[%clk 0:02:58]} 5. d4 {[%clk 0:03:01]}  c5 {[%clk 0:02:54]} 6. d5 {[%clk 0:03:01]}  b5 {[%clk 0:02:53]} 7. cxb5 {[%clk 0:03:00]}  a6 {[%clk 0:02:53]} 8. b6 {[%clk 0:02:58]}  d6 {[%clk 0:02:52]} 9. a4 {[%clk 0:02:57]}  Qxb6 {[%clk 0:02:50]} 10. a5 {[%clk 0:02:56]}  Qb4+ {[%clk 0:02:28]} 11. Nfd2 {[%clk 0:02:55]}  Bd7 {[%clk 0:02:16]} 12. O-O {[%clk 0:02:49]}  Bb5 {[%clk 0:02:04]} 13. Nc3 {[%clk 0:02:33]}  Nbd7 {[%clk 0:02:00]} 14. h3 {[%clk 0:02:28]}  c4 {[%clk 0:01:46]} 15. Re1 {[%clk 0:01:54]}  Nc5 {[%clk 0:01:41]} 16. Ra3 {[%clk 0:01:39]}  Bd7 {[%clk 0:01:17]} 17. Na2 {[%clk 0:01:09]}  Qb5 {[%clk 0:01:16]} 18. Qc2 {[%clk 0:01:09]}  Rfc8 {[%clk 0:01:03]} 19. Qxc4 {[%clk 0:01:08]}  Qb7 {[%clk 0:00:57]} 20. Nb4 {[%clk 0:00:54]}  Bb5 {[%clk 0:00:21]} 21. Qh4 {[%clk 0:00:51]}  Ncd7 {[%clk 0:00:17]} 22. Nc6 {[%clk 0:00:46]}  Rxc6 {[%clk 0:00:15]} 23. dxc6 {[%clk 0:00:45]}  Bxc6 {[%clk 0:00:16]} 24. Rb3 {[%clk 0:00:45]}  Qc7 {[%clk 0:00:13]} 25. Qc4 {[%clk 0:00:28]}  d5 {[%clk 0:00:12]} 26. Qc2 {[%clk 0:00:25]}  Rc8 {[%clk 0:00:11]} 27. Rb4 {[%clk 0:00:19]}  e5 {[%clk 0:00:11]} 28. Nb3 {[%clk 0:00:18]}  Bf8 {[%clk 0:00:10]} 29. Rh4 {[%clk 0:00:17]}  h5 {[%clk 0:00:08]} 30. Bg5 {[%clk 0:00:17]}  Ba4 {[%clk 0:00:05]} 31. Qxc7 {[%clk 0:00:16]}  Rxc7 {[%clk 0:00:05]} 32. Rxa4 {[%clk 0:00:17]}  Rb7 {[%clk 0:00:04]} 33. Nc1 {[%clk 0:00:15]}  Rxb2 {[%clk 0:00:04]} 34. Nd3 {[%clk 0:00:16]}  Rb5 {[%clk 0:00:04]} 35. Nxe5 {[%clk 0:00:15]}  Nxe5 {[%clk 0:00:04]} 36. Bxf6 {[%clk 0:00:15]}  Nc4 {[%clk 0:00:04]} 37. Bc3 {[%clk 0:00:15]}  Bc5 {[%clk 0:00:02]} 38. Bxd5 {[%clk 0:00:14]} 1-0


[Site "https://www.chess.com"]

[Event "Titled Tuesday Blitz October 18 Late 2022"]
[White "Gonzalez Vega, Alejandro"]
[Black "Quispe Santacruz, Javier"]
[WhiteFideId "3510042"]
[BlackFideId "3800920"]
[WhiteElo "2256"]
[BlackElo "1930"]
[Result "1-0"]
[Round "04"]
[TimeControl "180+1"]
[Date "2022.10.19"]
[WhiteClock "0:00:17"]
[BlackClock "0:00:29"]

1. e4 {[%clk 0:02:54]}  e5 {[%clk 0:02:59]} 2. Nf3 {[%clk 0:02:53]}  Nc6 {[%clk 0:02:59]} 3. d4 {[%clk 0:02:53]}  exd4 {[%clk 0:02:58]} 4. Bc4 {[%clk 0:02:54]}  Bc5 {[%clk 0:02:58]} 5. c3 {[%clk 0:02:53]}  Nf6 {[%clk 0:02:58]} 6. e5 {[%clk 0:02:52]}  d5 {[%clk 0:02:58]} 7. Bb5 {[%clk 0:02:51]}  Ne4 {[%clk 0:02:56]} 8. cxd4 {[%clk 0:02:51]}  Bb6 {[%clk 0:02:55]} 9. h3 {[%clk 0:02:48]}  O-O {[%clk 0:02:52]} 10. O-O {[%clk 0:02:46]}  Ne7 {[%clk 0:02:51]} 11. Nc3 {[%clk 0:02:40]}  Bf5 {[%clk 0:02:45]} 12. Be3 {[%clk 0:02:35]}  c6 {[%clk 0:02:44]} 13. Bd3 {[%clk 0:02:35]}  f6 {[%clk 0:02:35]} 14. Qc2 {[%clk 0:01:58]}  fxe5 {[%clk 0:02:18]} 15. Nxe5 {[%clk 0:01:56]}  Nxc3 {[%clk 0:02:13]} 16. bxc3 {[%clk 0:01:52]}  Bxd3 {[%clk 0:02:12]} 17. Qxd3 {[%clk 0:01:53]}  Nf5 {[%clk 0:02:11]} 18. Bd2 {[%clk 0:01:49]}  Bc7 {[%clk 0:01:50]} 19. Rae1 {[%clk 0:01:47]}  Nd6 {[%clk 0:01:46]} 20. f4 {[%clk 0:01:33]}  Ne4 {[%clk 0:01:43]} 21. Bc1 {[%clk 0:01:27]}  Qh4 {[%clk 0:01:38]} 22. c4 {[%clk 0:01:17]}  Ng3 {[%clk 0:01:30]} 23. Rf2 {[%clk 0:01:03]}  dxc4 {[%clk 0:01:28]} 24. Qxc4+ {[%clk 0:01:02]}  Kh8 {[%clk 0:01:27]} 25. Nf7+ {[%clk 0:00:59]}  Rxf7 {[%clk 0:01:15]} 26. Qxf7 {[%clk 0:00:59]}  h6 {[%clk 0:00:55]} 27. Qxc7 {[%clk 0:00:54]}  Rd8 {[%clk 0:00:40]} 28. Qe7 {[%clk 0:00:37]}  Qxe7 {[%clk 0:00:35]} 29. Rxe7 {[%clk 0:00:37]}  Rxd4 {[%clk 0:00:36]} 30. Kh2 {[%clk 0:00:20]}  Rd3 {[%clk 0:00:33]} 31. Re3 {[%clk 0:00:18]}  Rxe3 {[%clk 0:00:28]} 32. Bxe3 {[%clk 0:00:17]}  Nf5 {[%clk 0:00:29]} 33. Bxa7 {[%clk 0:00:17]} 1-0


[Site "https://www.chess.com"]

[Event "Titled Tuesday Blitz October 18 Late 2022"]
[White "Goryachkina, Aleksandra"]
[Black "Drost, Peter"]
[WhiteFideId "4147103"]
[BlackFideId "1017896"]
[WhiteElo "2484"]
[BlackElo "2405"]
[Result "1-0"]
[Round "04"]
[TimeControl "180+1"]
[Date "2022.10.19"]
[WhiteClock "0:00:22"]
[BlackClock "0:00:01"]

1. e4 {[%clk 0:02:59]}  c5 {[%clk 0:02:59]} 2. Nf3 {[%clk 0:02:59]}  d6 {[%clk 0:03:00]} 3. Bb5+ {[%clk 0:02:59]}  Bd7 {[%clk 0:03:00]} 4. Bxd7+ {[%clk 0:02:59]}  Qxd7 {[%clk 0:03:00]} 5. O-O {[%clk 0:02:59]}  Nc6 {[%clk 0:02:56]} 6. c3 {[%clk 0:02:58]}  d5 {[%clk 0:02:56]} 7. d3 {[%clk 0:02:51]}  g6 {[%clk 0:02:53]} 8. Be3 {[%clk 0:02:48]}  d4 {[%clk 0:02:40]} 9. cxd4 {[%clk 0:02:46]}  Nxd4 {[%clk 0:02:29]} 10. Nxd4 {[%clk 0:02:45]}  cxd4 {[%clk 0:02:29]} 11. Bf4 {[%clk 0:02:46]}  Bg7 {[%clk 0:02:29]} 12. Nd2 {[%clk 0:02:46]}  e5 {[%clk 0:02:19]} 13. Bg3 {[%clk 0:02:46]}  Ne7 {[%clk 0:02:19]} 14. Nc4 {[%clk 0:02:45]}  Nc6 {[%clk 0:02:18]} 15. f4 {[%clk 0:02:44]}  exf4 {[%clk 0:02:14]} 16. Bxf4 {[%clk 0:02:44]}  O-O {[%clk 0:02:12]} 17. Qf3 {[%clk 0:02:40]}  b5 {[%clk 0:01:56]} 18. Nd2 {[%clk 0:02:38]}  Rac8 {[%clk 0:01:49]} 19. Qg3 {[%clk 0:02:30]}  Nb4 {[%clk 0:01:28]} 20. Bd6 {[%clk 0:02:24]}  Nc2 {[%clk 0:01:23]} 21. Bxf8 {[%clk 0:02:22]}  Rxf8 {[%clk 0:01:23]} 22. Rac1 {[%clk 0:02:16]}  Ne3 {[%clk 0:01:20]} 23. Rf3 {[%clk 0:02:15]}  Qe6 {[%clk 0:01:06]} 24. h3 {[%clk 0:02:09]}  Qxa2 {[%clk 0:01:04]} 25. Nf1 {[%clk 0:01:50]}  Qxb2 {[%clk 0:01:00]} 26. Re1 {[%clk 0:01:47]}  a5 {[%clk 0:00:54]} 27. e5 {[%clk 0:01:15]}  a4 {[%clk 0:00:50]} 28. Nxe3 {[%clk 0:01:10]}  dxe3 {[%clk 0:00:50]} 29. Rfxe3 {[%clk 0:01:08]}  Qd4 {[%clk 0:00:41]} 30. Kh1 {[%clk 0:01:01]}  a3 {[%clk 0:00:41]} 31. Re4 {[%clk 0:00:57]}  Qc3 {[%clk 0:00:34]} 32. Qf2 {[%clk 0:00:38]}  Ra8 {[%clk 0:00:16]} 33. Qa2 {[%clk 0:00:32]}  b4 {[%clk 0:00:16]} 34. Qd5 {[%clk 0:00:30]}  Rc8 {[%clk 0:00:14]} 35. e6 {[%clk 0:00:29]}  fxe6 {[%clk 0:00:11]} 36. Rxe6 {[%clk 0:00:29]}  Kh8 {[%clk 0:00:07]} 37. Re8+ {[%clk 0:00:26]}  Bf8 {[%clk 0:00:06]} 38. Qf7 {[%clk 0:00:25]}  Qxe1+ {[%clk 0:00:04]} 39. Rxe1 {[%clk 0:00:24]}  a2 {[%clk 0:00:04]} 40. Qxa2 {[%clk 0:00:24]}  Bd6 {[%clk 0:00:01]} 41. Qe6 {[%clk 0:00:22]} 1-0


[Site "https://www.chess.com"]

[Event "Titled Tuesday Blitz October 18 Late 2022"]
[White "Guliyev, Namig"]
[Black "Ezat, Mohamed"]
[WhiteFideId "13400363"]
[BlackFideId "10600906"]
[WhiteElo "2712"]
[BlackElo "2535"]
[Result "1-0"]
[Round "04"]
[TimeControl "180+1"]
[Date "2022.10.19"]
[WhiteClock "0:00:15"]
[BlackClock "0:00:01"]

1. e4 {[%clk 0:03:00]}  e5 {[%clk 0:02:57]} 2. Nf3 {[%clk 0:03:00]}  Nc6 {[%clk 0:02:57]} 3. Bb5 {[%clk 0:03:00]}  Nge7 {[%clk 0:02:55]} 4. O-O {[%clk 0:02:59]}  a6 {[%clk 0:02:55]} 5. Bc4 {[%clk 0:02:54]}  Ng6 {[%clk 0:02:47]} 6. d4 {[%clk 0:02:48]}  d6 {[%clk 0:02:46]} 7. Ng5 {[%clk 0:02:44]}  Nxd4 {[%clk 0:02:38]} 8. Nxf7 {[%clk 0:02:38]}  Qh4 {[%clk 0:02:37]} 9. Nxh8 {[%clk 0:02:37]}  Nxh8 {[%clk 0:02:36]} 10. Be3 {[%clk 0:02:36]}  Ng6 {[%clk 0:02:25]} 11. Nc3 {[%clk 0:02:34]}  Nf4 {[%clk 0:02:23]} 12. Bxd4 {[%clk 0:02:22]}  exd4 {[%clk 0:02:20]} 13. Nd5 {[%clk 0:02:23]}  Nxd5 {[%clk 0:02:13]} 14. exd5 {[%clk 0:02:08]}  Be7 {[%clk 0:02:11]} 15. Re1 {[%clk 0:02:05]}  Kf8 {[%clk 0:02:06]} 16. Qf3+ {[%clk 0:02:01]}  Bf6 {[%clk 0:02:05]} 17. Re4 {[%clk 0:02:01]}  Qh6 {[%clk 0:02:04]} 18. Rae1 {[%clk 0:01:58]}  Bd7 {[%clk 0:02:04]} 19. h3 {[%clk 0:01:57]}  Kg8 {[%clk 0:01:59]} 20. Bd3 {[%clk 0:01:51]}  Rf8 {[%clk 0:01:53]} 21. Qg3 {[%clk 0:01:49]}  Be5 {[%clk 0:01:50]} 22. Rxe5 {[%clk 0:01:49]}  dxe5 {[%clk 0:01:49]} 23. Qxe5 {[%clk 0:01:47]}  Qd2 {[%clk 0:01:46]} 24. Re2 {[%clk 0:01:45]}  Qc1+ {[%clk 0:01:36]} 25. Kh2 {[%clk 0:01:44]}  c5 {[%clk 0:01:20]} 26. dxc6 {[%clk 0:01:37]}  Bxc6 {[%clk 0:01:20]} 27. Bc4+ {[%clk 0:01:35]}  Kh8 {[%clk 0:01:19]} 28. Qxd4 {[%clk 0:01:35]}  h6 {[%clk 0:01:07]} 29. f3 {[%clk 0:01:28]}  Qg5 {[%clk 0:00:57]} 30. Re5 {[%clk 0:01:19]}  Qf6 {[%clk 0:00:52]} 31. Qe3 {[%clk 0:01:19]}  Qd6 {[%clk 0:00:48]} 32. f4 {[%clk 0:01:16]}  Qf6 {[%clk 0:00:48]} 33. g3 {[%clk 0:01:01]}  Qd6 {[%clk 0:00:48]} 34. Bd3 {[%clk 0:00:54]}  Qb4 {[%clk 0:00:33]} 35. b3 {[%clk 0:00:44]}  Qc3 {[%clk 0:00:32]} 36. a4 {[%clk 0:00:36]}  Rd8 {[%clk 0:00:27]} 37. Re6 {[%clk 0:00:21]}  Qb2 {[%clk 0:00:15]} 38. Qe5 {[%clk 0:00:19]}  Qxe5 {[%clk 0:00:09]} 39. Rxe5 {[%clk 0:00:19]}  Rc8 {[%clk 0:00:08]} 40. g4 {[%clk 0:00:18]}  b5 {[%clk 0:00:01]} 41. a5 {[%clk 0:00:16]}  b4 {[%clk 0:00:01]} 42. Bxa6 {[%clk 0:00:15]}  Rd8 {[%clk 0:00:01]} 43. Bd3 {[%clk 0:00:15]} 1-0


[Site "https://www.chess.com"]

[Event "Titled Tuesday Blitz October 18 Late 2022"]
[White "Guzman Moneo, Alberto"]
[Black "Radovic, Janko"]
[WhiteFideId "2209616"]
[BlackFideId "911518"]
[WhiteElo "2157"]
[BlackElo "2318"]
[Result "1/2-1/2"]
[Round "04"]
[TimeControl "180+1"]
[Date "2022.10.19"]
[WhiteClock "0:00:48"]
[BlackClock "0:00:54"]

1. e4 {[%clk 0:03:00]}  c5 {[%clk 0:02:59]} 2. Nc3 {[%clk 0:03:00]}  d6 {[%clk 0:02:58]} 3. f4 {[%clk 0:03:00]}  Nc6 {[%clk 0:02:58]} 4. Nf3 {[%clk 0:03:00]}  e6 {[%clk 0:02:57]} 5. Bc4 {[%clk 0:02:53]}  Nf6 {[%clk 0:02:53]} 6. d3 {[%clk 0:02:53]}  Be7 {[%clk 0:02:53]} 7. a3 {[%clk 0:02:52]}  O-O {[%clk 0:02:53]} 8. O-O {[%clk 0:02:51]}  a6 {[%clk 0:02:52]} 9. Qe1 {[%clk 0:02:43]}  b5 {[%clk 0:02:51]} 10. Bb3 {[%clk 0:02:43]}  Bb7 {[%clk 0:02:42]} 11. f5 {[%clk 0:02:41]}  d5 {[%clk 0:02:06]} 12. fxe6 {[%clk 0:02:40]}  fxe6 {[%clk 0:02:06]} 13. exd5 {[%clk 0:02:40]}  exd5 {[%clk 0:02:07]} 14. Qe6+ {[%clk 0:02:21]}  Kh8 {[%clk 0:02:06]} 15. Nxd5 {[%clk 0:02:11]}  Nxd5 {[%clk 0:02:00]} 16. Qxd5 {[%clk 0:02:06]}  Bd6 {[%clk 0:01:49]} 17. Qh5 {[%clk 0:01:49]}  Nd4 {[%clk 0:01:31]} 18. Ng5 {[%clk 0:01:32]}  Rxf1+ {[%clk 0:01:08]} 19. Kxf1 {[%clk 0:01:33]}  Qf6+ {[%clk 0:01:00]} 20. Kg1 {[%clk 0:01:25]}  h6 {[%clk 0:00:58]} 21. Nf7+ {[%clk 0:01:06]}  Kh7 {[%clk 0:00:58]} 22. Ng5+ {[%clk 0:00:55]}  Kh8 {[%clk 0:00:55]} 23. Nf7+ {[%clk 0:00:53]}  Kh7 {[%clk 0:00:54]} 24. Ng5+ {[%clk 0:00:48]}  Kh8 {[%clk 0:00:54]} 1/2-1/2


[Site "https://www.chess.com"]